Cogmind - Beta 10 @@@ ROGUE MODE // 2020.09.20 @ 02:10:22 Player: DragoX Result: Destroyed by as-08909 with Assembled Heavy Rifle Performance ------------- Evolutions (0) 0 Regions Visited (4) 800 Robots Destroyed (35) 175 Value Destroyed (479) 479 Prototype IDs (3) 60 Alien Tech Used (0) 0 Bonus (300) 300 TOTAL SCORE: 1814 Bonus ------- Aligned with FarCom 300 Cogmind --------- Core Integrity 0/250 Matter 222/300 Energy 125/125 System Corruption 0% Temperature Cool (0) Movement Flying (1720) Ox21 Location -9/Mines Parts ------- > --- POWER (1) -------- Light Ion Engine > --- PROPULSION (2) --- Flight Unit > --- UTILITY (2) ------ Humpback > --- WEAPON (2) ------- Grenade Launcher > --- INVENTORY (24) --- Wheel Improved Heat Sink High-capacity Battery (400) Large Matter Pod (150) Supersonic Drone Bay (1/1) AWS/Thermal YOLO Cannon Mining Claw Peak State ------------ > --- POWER ------------ Light Nuclear Core > --- PROPULSION ------- Armored Wheel Armored Wheel > --- UTILITY ---------- Supersonic Drone Bay > --- WEAPON ----------- AWS/Thermal > --- INVENTORY -------- Wheel Grenade Launcher Mining Claw [Rating: 31] Favorites ----------- Power Light Nuclear Core Engine Light Ion Engine Power Core Light Nuclear Core Propulsion Armored Wheel Wheel Armored Wheel Flight Unit Flight Unit Utility Small Storage Unit Device Supersonic Drone Bay Storage Small Storage Unit Protection Medium Armor Plating Weapon Spread Laser Energy Gun Spread Laser Energy Cannon YOLO Cannon Ballistic Gun Light Assault Rifle Launcher Grenade Launcher Slashing Weapon Mining Claw Build | -11 -10 -10 -10 -9 ------- Run | Scr Mat Min Exi Min Slots Evolved . | . . . . . Power . | . . . . . Propulsion . | . . . . . Utility . | . . . . . Weapon . | . . . . . Parts Attached 26 | 5 9 4 5 3 Power 3 | . 1 1 . 1 Engine 2 | . 1 . . 1 Core 1 | . . 1 . . Reactor . | . . . . . Propulsion 5 | 2 2 . . 1 Treads . | . . . . . Leg . | . . . . . Wheel 4 | 2 2 . . . Hover . | . . . . . Flight 1 | . . . . 1 Utility 7 | 1 3 . 3 . Device 1 | . . . 1 . Storage 4 | 1 1 . 2 . Processor . | . . . . . Hackware . | . . . . . Protection 2 | . 2 . . . Artifact . | . . . . . Weapon 11 | 2 3 3 2 1 Energy Gun 6 | . 3 2 1 . Energy Cannon 1 | . . . 1 . Ballistic Gun 2 | 2 . . . . Ballistic Cannon . | . . . . . Launcher 1 | . . . . 1 Special Weapon . | . . . . . Impact Weapon . | . . . . . Slashing Weapon 1 | . . 1 . . Piercing Weapon . | . . . . . Special Melee Weapon . | . . . . . Unidentified Prototypes 3 | . . . 3 . Parts Lost 4 | . 2 . . 2 Power 1 | . . . . 1 Propulsion 1 | . . . . 1 Utility . | . . . . . Weapon 2 | . 2 . . . Highest Loss Streak 2 | . 1 . . 2 Average Slot Usage (%) 85 | . 79 100 83 52 Engine 1 | . 5 . . 3 Core 9 | . . 14 14 5 Wheel 26 | . 28 28 28 15 Storage 14 | . 14 14 13 14 Protection 7 | . 4 14 3 . Energy Gun 18 | . 5 28 22 3 Ballistic Gun 4 | . 20 . . . Launcher 1 | . . . . 10 Naked Turns . | . . . . . Heaviest Build 93 | 6 17 22 93 93 Greatest Support 28 | 26 28 24 24 24 Greatest Overweight (x) 29 | . . . 3 29 Average Overweight (x) . | . . . 1 8 Largest Inventory Capacity 24 | 6 6 6 24 24 Average Capacity 10 | 5 6 6 17 24 Most Carried 11 | 5 6 6 11 11 Average Carried 6 | 3 5 5 6 9 Final Capacity 24 | 6 6 6 24 24 Final Carried 10 | 5 6 5 9 10 Class Distribution -------------------- 74% | Mutant 25% | Hauler-Mutant Dominant Class ---------------- Mutant | -10/Materials Mutant | -10/Mines Hauler-Mutant | -10/Exiles Hauler-Mutant | -9/Mines Resources | -11 -10 -10 -10 -9 ----------- Run | Scr Mat Min Exi Min Matter Collected 576 | 231 175 60 50 60 Remotely . | . . . . . Salvage Created 656 | . 401 97 . 158 Parts 30 | . 19 9 . 2 Haulers Intercepted . | . . . . . Recyclers Shooed 2 | . . . . 2 Parts Field Recycled . | . . . . . Retrieved Matter . | . . . . . Parts Self-Destructed . | . . . . . Prevented . | . . . . . Kills | -11 -10 -10 -10 -9 ------- Run | Scr Mat Min Exi Min Combat Hostiles Destroyed 35 | . 11 6 . 18 Guns 25 | . 11 6 . 8 AOE 10 | . . . . 10 Classes Destroyed 3 | . 2 . . 1 Swarmer 9 | . 3 4 . 2 Grunt 10 | . 8 2 . . Assembled 16 | . . . . 16 Best Kill Streak 10 | . 6 2 . 10 Combat Bots Only 10 | . 6 2 . 10 Max Kills in Single Turn 3 | . 1 2 . 3 Gunslinging . | . . . . . Exploded 3 | . . . . 3 Melee . | . . . . . Uniques/NPCs Destroyed . | . . . . . Combat | -11 -10 -10 -10 -9 -------- Run | Scr Mat Min Exi Min Damage Taken 1267 | . 495 189 . 583 Core 266 | . 84 18 . 164 Absorbed by Shields . | . . . . . Core Remaining (%) 100 | 100 . . . . Volleys Fired 54 | . 33 14 . 7 Largest 2 | . 2 2 . 1 Hottest 130 | . 60 130 . 30 Shots Fired 112 | . 61 24 . 27 Gun 105 | . 61 24 . 20 Cannon . | . . . . . Launcher 7 | . . . . 7 Special . | . . . . . Kinetic 43 | . 43 . . . Thermal 62 | . 18 24 . 20 Explosive 7 | . . . . 7 Electromagnetic . | . . . . . Robot Hit Streak 12 | . 12 6 . 6 Robot Miss Streak 14 | . 4 14 . 2 Penetration Max . | . . . . . Secondary Targets 2 | . 2 . . . Max Gunslinging Chain 1 | . 1 . . . Autonomous 20 | . . . . 20 Shots Hit Robots 82 | . 44 19 . 19 Core Hits 78 | . 25 21 . 32 Critical Hits . | . . . . . Critical Kills . | . . . . . Critical Parts Destroyed . | . . . . . Melee Attacks . | . . . . . Impact . | . . . . . Slashing . | . . . . . Piercing . | . . . . . Sneak Attacks . | . . . . . Combat Hostiles . | . . . . . Follow-up Attacks . | . . . . . Damage Inflicted 1769 | . 414 203 . 1152 Guns 1083 | . 414 203 . 466 Cannons . | . . . . . Explosions 636 | . . . . 636 Melee . | . . . . . Ramming 50 | . . . . 50 Kinetic 246 | . 246 . . . Thermal 837 | . 168 203 . 466 Explosive 636 | . . . . 636 Electromagnetic . | . . . . . Impact . | . . . . . Slashing . | . . . . . Piercing . | . . . . . Highest Corruption . | . . . . . Average Corruption . | . . . . . Corruption Purged . | . . . . . Overload Shots . | . . . . . Overflow Damage 24 | . . . . 24 Projectiles . | . . . . . Explosions 24 | . . . . 24 Melee . | . . . . . Knockbacks . | . . . . . Impact . | . . . . . Kinetic . | . . . . . Secondary . | . . . . . Self-Inflicted Damage 54 | . . . . 54 Shots 3 | . . . . 3 Rammed 5 | . . . . 5 Targets Rammed 5 | . . . . 5 Kicked . | . . . . . Crushed . | . . . . . Highest Temperature 320 | . 301 320 . 17 Average Temperature 141 | . 142 154 . 6 Received Heat Transfer 439 | . 237 42 . 160 Effects 2 | . . 2 . . Interference 2 | . . 2 . . Siege Activations . | . . . . . Robots Corrupted . | . . . . . Combat Hostiles . | . . . . . Parts Fried . | . . . . . Impact Corruptions . | . . . . . Robots Melted . | . . . . . Combat Hostiles . | . . . . . Parts Melted . | . . . . . Heat Transferred 1242 | . 400 250 . 592 Parts Sabotaged . | . . . . . Parts Stolen . | . . . . . Parts Stripped . | . . . . . Power Chain Reactions . | . . . . . Missiles Intercepted . | . . . . . Alert | -11 -10 -10 -10 -9 ------- Run | Scr Mat Min Exi Min Peak Influence 150 | . 150 113 . 55 Initial 23 | . . 23 . . Average 45 | . 61 45 . 27 Maximum Alert Level . | . . . . . Low Security (%) 100 | 100 100 100 . 100 Level 1 . | . . . . . Level 2 . | . . . . . Level 3 . | . . . . . Level 4 . | . . . . . Level 5 . | . . . . . High Security . | . . . . . Max Security . | . . . . . Squads Dispatched 2 | . 2 . . . Investigation . | . . . . . Extermination . | . . . . . Reinforcement 2 | . 2 . . . Assault . | . . . . . Garrison . | . . . . . Intercept . | . . . . . Construction Impeded . | . . . . . Haulers Reinforced . | . . . . . Stealth | -11 -10 -10 -10 -9 --------- Run | Scr Mat Min Exi Min Distress Signals 1 | . 1 . . . Communications Jammed . | . . . . . Distress Signals . | . . . . . Times Spotted 51 | . 17 7 . 27 Peak Tracking Total 19 | . 6 3 . 19 Tactical Retreats 4 | . 1 . . 3 Traps | -11 -10 -10 -10 -9 ------- Run | Scr Mat Min Exi Min Traps Triggered . | . . . . . Indirectly . | . . . . . Trap Hack Attempts . | . . . . . Triggered . | . . . . . Disarmed . | . . . . . Reprogrammed . | . . . . . Reused . | . . . . . Traps Extracted . | . . . . . Installed . | . . . . . Triggered . | . . . . . Machines | -11 -10 -10 -10 -9 ---------- Run | Scr Mat Min Exi Min Machines Disabled 1 | . . . . 1 Max in Single Turn 1 | . . . . 1 Machines Sabotaged . | . . . . . Garrisons Compromised . | . . . . . Overloaded Fab Kills . | . . . . . Fab Network Shutdowns . | . . . . . Hacking | -11 -10 -10 -10 -9 --------- Run | Scr Mat Min Exi Min Machines Accessed 1 | . 1 . . . Terminals 1 | . 1 . . . Fabricators . | . . . . . Repair Stations . | . . . . . Recycling Units . | . . . . . Scanalyzers . | . . . . . Garrison Access . | . . . . . Total Hacks 3 | . 3 . . . Successful . | . . . . . Failed 3 | . 3 . . . Catastrophic 1 | . 1 . . . Database Lockouts . | . . . . . Manual 4 | . 3 . 1 . Terminals 3 | . 3 . . . Fabricators . | . . . . . Repair Stations . | . . . . . Recycling Units . | . . . . . Scanalyzers . | . . . . . Garrison Access . | . . . . . Terminal Hacks . | . . . . . Fabricator Hacks . | . . . . . Repair Station Hacks . | . . . . . Recycling Unit Hacks . | . . . . . Scanalyzer . | . . . . . Garrison Access Hacks . | . . . . . Unauthorized Hacks . | . . . . . Terminals . | . . . . . Fabricators . | . . . . . Repair Stations . | . . . . . Recycling Units . | . . . . . Scanalyzers . | . . . . . Garrison Access . | . . . . . Data Cores Recovered . | . . . . . Used . | . . . . . Hacking Detections 1 | . 1 . . . Full Trace Events 1 | . 1 . . . Feedback Events . | . . . . . Feedback Blocked . | . . . . . Robot Schematics Acquired . | . . . . . Robots Built . | . . . . . Matter . | . . . . . Time . | . . . . . Total Robot Build Rating . | . . . . . Part Schematics Acquired . | . . . . . Parts Built . | . . . . . Matter . | . . . . . Time . | . . . . . Total Part Build Rating . | . . . . . Parts Repaired . | . . . . . Time . | . . . . . Parts Recycled . | . . . . . Recycled Matter . | . . . . . Retrieved Matter . | . . . . . Retrieved Components . | . . . . . Parts Scanalyzed . | . . . . . Part Schematics Acquired . | . . . . . Parts Damaged . | . . . . . Bothacking | -11 -10 -10 -10 -9 ------------ Run | Scr Mat Min Exi Min Used RIF Installer . | . . . . . Robots Hacked . | . . . . . Non-combat . | . . . . . Combat . | . . . . . Robot Hacks Applied . | . . . . . Relay Couplers Released . | . . . . . Robots Rewired . | . . . . . Allies Hacked . | . . . . . Hacks Repelled . | . . . . . Allies | -11 -10 -10 -10 -9 -------- Run | Scr Mat Min Exi Min Total Allies 3 | . . 1 . 2 Largest Group 2 | . . 1 . 2 Highest-Rated Group 45 | . . 31 . 45 Highest-Rated Ally 31 | . . 31 . 31 Total Orders 2 | . . . 2 . EXPLORE 1 | . . . 1 . RETURN 1 | . . . 1 . Ally Attacks 3 | . . . . 3 Total Damage 60 | . . . . 60 Kills 2 | . . . . 2 Allies Corrupted . | . . . . . Allies Melted . | . . . . . Intel | -11 -10 -10 -10 -9 ------- Run | Scr Mat Min Exi Min Robot Analysis Total . | . . . . . Derelict Logs Recovered 1 | . . 1 . . Drone Launches 1 | . . . 1 . Drone Recoveries 1 | . . . 1 . Exploration | -11 -10 -10 -10 -9 ------------- Run | Scr Mat Min Exi Min Turns Passed 2329 | 54 518 983 502 272 Spaces Moved 1748 | 45 357 870 420 56 Core 14 | 3 . . . 11 Treads . | . . . . . Legs . | . . . . . Wheels 1732 | 42 357 870 420 43 Hover . | . . . . . Flight 2 | . . . . 2 Fastest Speed 50 | 50 90 90 90 120 Average Speed 105 | 85 90 90 108 437 Slowest Speed 1720 | 90 95 90 120 1720 Overloaded Moves . | . . . . . Propulsion Burnouts . | . . . . . Robots Hopped . | . . . . . Cave-ins Triggered . | . . . . . Exploration Rate (%) 53 | 3 58 99 91 18 Regions Visited 4 Branch Regions 3 Pre-discovered Areas 1 | . . 1 . . Known Exits Taken . | . . . . . Unknown Exits Taken 4 | 1 1 1 1 . Scrap Searched 2 | . . 2 . . Spaces Dug . | . . . . . Terrain Destroyed 43 | . . . . 43 Melee . | . . . . . Projectile 4 | . . . . 4 AOE 39 | . . . . 39 Terrain Rammed . | . . . . . Walls Destroyed . | . . . . . Machines Disabled . | . . . . . Actions | -11 -10 -10 -10 -9 --------- Run | Scr Mat Min Exi Min Total 2159 | 60 504 1045 467 83 Wait 276 | 1 90 152 25 8 Move 1744 | 44 356 869 419 56 Hop . | . . . . . Pick Up 35 | 10 9 3 11 2 Fast Attach 2 | . . . 2 . Attach 19 | 5 7 1 3 3 Detach 2 | . . . 1 1 Swap 5 | . 2 3 . . Drop 17 | . 7 3 6 1 Fire 54 | . 33 14 . 7 Melee . | . . . . . Ram 5 | . . . . 5 Kick . | . . . . . Crush . | . . . . . Escape Stasis . | . . . . . Rewire . | . . . . . Trap . | . . . . . Miscellaneous . | . . . . . Route ------- -11/Scrapyard -10/Materials -10/Mines (discovered 3 exits: [*Mat x2] / *Exi) -10/Exiles (discovered 2 exits: [*Min x2]) -9/Mines History --------- Turn | Location | Event 2 | -11/Scrapyard | Met Revision 17 26 | -11/Scrapyard | Discovered new exit (range 15) 55 | -11/Scrapyard | Entered Materials 318 | -10/Materials | Build established: Mutant 355 | -10/Materials | Discovered new exit (range 7) 573 | -10/Materials | Entered Mines 600 | -10/Mines | Met a Derelict bent on vengeance 957 | -10/Mines | Learned location of Zion (-7) 973 | -10/Mines | Deemed a non-threat by the Exiles lab entrance 973 | -10/Mines | Discovered new exit (range 5) 1092 | -10/Mines | Escorted by a lone wolf Derelict 1092 | -10/Mines | Discovered new exit (range 9) 1143 | -10/Mines | Discovered new exit (range 8) 1434 | -10/Mines | Joined a pair of Derelicts in attacking an 0b10 outpost 1556 | -10/Mines | Entered Exiles 1578 | -10/Exiles | Met 8R-AWN 1594 | -10/Exiles | Met EX-HEX 1655 | -10/Exiles | Met EX-DEC 1813 | -10/Exiles | Met EX-BIN 1827 | -10/Exiles | Aligned with FarCom system 1828 | -10/Exiles | Given EX-Vault access code 1858 | -10/Exiles | Opened EX-Vault 1863 | -10/Exiles | Found Prototype Device 1868 | -10/Exiles | Found Prototype Energy Cannon 1869 | -10/Exiles | Identified YOLO Cannon 1878 | -10/Exiles | Found Prototype Energy Gun 1879 | -10/Exiles | Identified AWS/Thermal 1881 | -10/Exiles | Identified Supersonic Drone Bay 1893 | -10/Exiles | Discovered new exit (range 54) 1897 | -10/Exiles | Discovered new exit (range 71) 1946 | -10/Exiles | Exiles lab attacked by MAIN.C 2058 | -10/Exiles | Stole three prototypes: AWS/Thermal, Supersonic Drone Bay, YOLO Cannon 2058 | -10/Exiles | Entered Mines 2066 | -9/Mines | Assembled infested the area 2117 | -9/Mines | Core integrity fell below 50% 2126 | -9/Mines | Destroyed 8 combat bots 2144 | -9/Mines | Core integrity fell below 20% 2191 | -9/Mines | Destroyed 10 combat bots 2206 | -9/Mines | Build established: Hauler-Mutant 2330 | -9/Mines | Destroyed by as-08909 with Assembled Heavy Rifle Last Messages --------------- 02210_ R-06 Scavenger collects Wheel. 02212_ U-05 Engineer lays Concrete. 02212_ U-05 Engineer builds a Wall. 02213_ U-05 Engineer lays Concrete. 02214_ U-05 Engineer builds a Wall. 02216_ U-05 Engineer lays Concrete. 02218_ U-05 Engineer builds a Wall. 02223_ U-05 Engineer lays Concrete. 02230_ U-05 Engineer builds a Wall. 02230_ U-05 Engineer lays Concrete. 02236_ U-05 Engineer builds a Wall. 02240_ U-05 Engineer lays Concrete. 02244_ U-05 Engineer builds a Wall. 02250_ U-05 Engineer lays Concrete. 02251_ U-05 Engineer builds a Wall. 02260_ U-05 Engineer lays Concrete. 02270_ Acquired Lgt. Ion Engine. 02272_ Dropped Broken Arm. Wheel. 02273_ Acquired 12 matter. 02302_ Acquired Flight Unit. Map ----- +----------------------------------------------------+ | ???# #?????? #???????????????????????????????? | | ???# #?????? #???????????????????????????????? | | ???# #?????? #???????????????????????????????? | | ??## "##???? ##??????????????????????????????? | | ?## ##?## ##?????????????????????????????? | | ?# "## #?????????????????????????????? | | ?# %* #?????????????????????????????? | | ?# %]=% ##?????????????????????????????? | | ?## ##%%##??????????????????????????????? | | ??# ####%#????????????????????????????????? | | ??## ##??"%#????????????????????????????????? | | ???# ##???#=#????????????????????????????????? | | ???####????#"#????????????????????????????????? | | ???????????#%#########????????????????????????? | | ???????????#" %%%%#????????????????????????? | | ???????????#########%#????????????????????????? | | ?????????????????###a##???????????????????????? | | ????????????????### % ##??????????????????????? | | ???????????????## ####???????????????????? | | ???????????????# ######????????????????? | | ????????????????# ###???????????????? | | ????????????????# % ###??????????????? | | ????????????????## #??????????????? | | ?????????????????# # #??????????????? | | ??????????????# # #??????????????? | | ?????????????# ## #@ #### #??????????????? | | ?????????? ### # # ###??????????????? | | ?????????### ? ???# #### ##???????????????? | | ???????????# ? ??? #??? ????????????????? | | ???????????#? ???######???##????????????????? | | ?????????????? ???????????????????????????????? | | ??????????????????????????????????????????????? | | ??????????????????????????????????????????????? | | ??????????????????????????????????????????????? | | ??????????????????????????????????????????????? | | ??????????????????????????????????????????????? | | ??????????????????????????????????????????????? | | ??????????????????????????????????????????????? | | ??????????????????????????????????????????????? | | ??????????????????????????????????????????????? | | ??????????????????????????????????????????????? | | ??????????????????????????????????????????????? | | ??????????????????????????????????????????????? | | ??????????????????????????????????????????????? | | ??????????????????????????????????????????????? | | ??????????????????????????????????????????????? | | ??????????????????????????????????????????????? | | ??????????????????????????????????????????????? | | ??????????????????????????????????????????????? | | ??????????????????????????????????????????????? | +----------------------------------------------------+ Best States ------------- Heat Dissipation 25 Energy Generation 14 Energy Capacity 160 Matter Stores 348 Matter Capacity 400 Sight Range 16 Terrain Scan Density 10 Armor Coverage 225 Evasion (%) 44 Item Schematics ----------------- None Robot Schematics ------------------ None Fabricated ------------ Nothing Alien Tech Used ----------------- None Achievements -------------- Crack Shot Exterminator Storm Trooper Challenges ------------ None Game ------ Seed ReinforcedAccelerationRipper Manual? 0 Play Time 00:31:55 Cumulative 3.6 hours Start 2020.09.20 @ 01:38:13 End 2020.09.20 @ 02:10:22 Sessions 1 Manual Loads 0 Difficulty Rogue Special Mode None Game No. 8 Rogue 8 Adventurer 0 Explorer 0 Win Type - Total 0 Types 0/0/0/0/0/0/0/0/0 Lore% 2 Gallery% 5 Achievement% 8 Wizard Run 0 Options --------- ASCII 0 Keyboard 0 Movement Mouse Keybinds 0 Fullscreen 1 Font 18/Cog Map View 76x50 Tactical HUD 1 Map Filters NONE Filters NONE Steam 0 RUN: 1a21e09f-ee1a-4c08-89a3-fae927cb82c3